fUSD/lending_fUSD_20250911
["ID","MTS","AMOUNT","RATE_DAILY","PERIOD"]
[384893591,1757620276123,-1464.12,0.00027671,7]
[384893592,1757620276132,-2413.71,0.00027671,7]
[384893593,1757620276141,-400.0,0.00027671,7]
[384893594,1757620276150,-400.0,0.00027671,7]
[384893595,1757620276159,-400.0,0.00027671,7]
[384893596,1757620276167,-906.61,0.00027671,7]
[384893597,1757620276181,-451.63,0.00027671,7]
[384893598,1757620276191,-1929.61,0.00027671,7]
[384893599,1757620276200,-500.0,0.00027672,7]
[384893600,1757620276209,-2944.02568922,0.00027673,3]
[384893601,1757620276218,-500.0,0.00027673,5]
[384893602,1757620276227,-500.0,0.00027673,5]
[384893603,1757620276236,-327.51459054,0.00027673,5]
[384893604,1757620276245,-500.0,0.00027673,5]
[384893605,1757620276254,-500.0,0.00027673,5]
[384893606,1757620276263,-500.0,0.00027673,5]
[384893607,1757620276272,-502.30692257,0.00027673,5]
[384893608,1757620276282,-500.0,0.00027673,5]
[384893609,1757620276292,-500.0,0.00027673,5]
[384893610,1757620276300,-500.0,0.00027673,5]
[384893611,1757620276309,-503.95307272,0.00027673,5]
[384893612,1757620276319,-500.0,0.00027673,5]
[384893613,1757620276328,-500.0,0.00027673,5]
[384893614,1757620276337,-500.0,0.00027673,5]
[384893615,1757620276346,-500.0,0.00027673,5]
[384893616,1757620276355,-500.0,0.00027673,5]
[384893617,1757620276364,-500.0,0.00027673,5]
[384893618,1757620276373,-255.47141394,0.00027673,5]
[384893619,1757620276382,-500.0,0.00027673,5]
[384893620,1757620276391,-500.0,0.00027673,5]
[384893621,1757620276400,-501.06108005,0.00027673,5]
[384893622,1757620276409,-154.68771041,0.00027673,2]
[384893623,1757620276420,-157.83786444,0.00027673,5]
[384893624,1757620276430,-161.71766105,0.00027673,2]
[384893625,1757620276440,-159.67390977,0.00027673,2]
[384893626,1757620276449,-500.0,0.00027673,5]
[384893627,1757620276459,-500.0,0.00027673,2]
[384893628,1757620276468,-277.52204613,0.00027673,2]
[384893629,1757620276477,-501.88737059,0.00027673,2]
[384893630,1757620276486,-159.72133918,0.00027673,2]
[384893631,1757620276495,-159.71813571,0.00027673,2]
[384893632,1757620276505,-500.56097715,0.00027673,5]
[384893633,1757620276514,-500.0,0.00027673,5]
[384893634,1757620276523,-500.0,0.00027673,5]
[384893635,1757620276532,-159.79026013,0.00027673,5]
[384893636,1757620276541,-502.39027523,0.00027673,5]
[384893637,1757620276551,-500.0,0.00027673,5]
[384893638,1757620276560,-545.25074372,0.00027673,5]
[384893639,1757620276570,-500.0,0.00027673,5]
[384893640,1757620276579,-156.50584374,0.00027673,5]
[384893641,1757620276796,-500.0,0.00027673,5]
[384893642,1757620276806,-510.23782192,0.00027673,5]
[384893643,1757620276815,-525.82436811,0.00027673,5]
[384893644,1757620276824,-500.0,0.00027673,5]
[384893645,1757620276833,-500.0,0.00027673,5]
[384893646,1757620276842,-500.0,0.00027673,5]
[384893647,1757620276851,-502.7293255,0.00027673,5]
[384893648,1757620276860,-503.1093231,0.00027673,5]
[384893649,1757620276869,-500.0,0.00027673,5]
[384893650,1757620276878,-500.0,0.00027673,5]
[384893651,1757620276888,-500.7929795,0.00027673,5]
[384893652,1757620276897,-500.0,0.00027673,5]
[384893653,1757620276906,-500.8305847,0.00027673,5]
[384893654,1757620276916,-500.0,0.00027673,5]
[384893655,1757620276925,-501.95293294,0.00027673,5]
[384893656,1757620276934,-500.0,0.00027673,5]
[384893657,1757620276943,-501.50626669,0.00027673,5]
[384893658,1757620276952,-500.0,0.00027673,5]
[384893659,1757620276961,-500.0,0.00027673,5]
[384893660,1757620276970,-500.0,0.00027673,5]
[384893661,1757620276979,-500.0,0.00027673,5]
[384893662,1757620276988,-500.0,0.00027673,5]
[384893663,1757620276996,-501.96012815,0.00027673,5]
[384893664,1757620277006,-502.27257765,0.00027673,5]
[384893665,1757620277015,-531.96452634,0.00027673,5]
[384893666,1757620277024,-160.76253675,0.00027679,7]
[384893667,1757620277034,-710.2728954,0.00027697,2]
[384893668,1757620277043,-819.61,0.00027699,7]
[384893669,1757620277051,-640.5,0.00027699,7]
[384893670,1757620277060,-650.72,0.00027699,7]
[384893671,1757620277070,-1348.26,0.00027699,7]
[384893672,1757620277079,-1000.0,0.000277,2]
[384893673,1757620277087,-162497.37,0.000277,7]
[384893674,1757620277097,-267.46074303,0.00027713,2]
[384893675,1757620277106,-6896.63371881,0.00027754,2]
[384893676,1757620277114,-1000.0,0.000278,2]
[384893677,1757620277123,-4607.3011614,0.00027827,8]
[384893678,1757620277132,-767.42320048,0.00027841,2]
[384893679,1757620277141,-168.0,0.00027844,2]
[384893680,1757620277150,-6896.63371881,0.00027845,2]
[384893681,1757620277159,-3493.01132012,0.00027845,2]
[384893682,1757620277168,-296.790565,0.00027845,2]
[384893683,1757620277177,-619.5866438,0.00027845,2]
[384893684,1757620277187,-896.40962416,0.000279,2]
[384893685,1757620277197,-1000.0,0.000279,2]
[384893686,1757620277207,-645.35,0.000279,2]
[384893687,1757620277217,-174.0,0.00027902,2]
[384893688,1757620277227,-1000.0,0.00027921,5]
[384893689,1757620277236,-168.0,0.00027921,2]
[384893690,1757620277245,-150.0,0.00027928,2]
[384893691,1757620277254,-332.65349706,0.0002793,2]
[384893692,1757620277264,-423.97014331,0.00027932,2]
[384893693,1757620277273,-515.28678956,0.00027934,2]
[384893694,1757620277282,-581.5351007,0.00027935,2]
[384893695,1757620277292,-606.60343581,0.00027936,2]
[384893696,1757620277300,-6896.63371881,0.00027936,2]
[384893697,1757620277311,-3493.01132012,0.00027936,2]
[384893698,1757620277320,-697.92008206,0.00027938,2]
[384893699,1757620277329,-789.23672831,0.0002794,2]
[384893700,1757620277339,-880.55337456,0.00027942,2]
[384893701,1757620277348,-300.0,0.00027944,10]
[384893702,1757620277358,-971.87002081,0.00027944,2]
[384893703,1757620277368,-1000.0,0.00027944,2]
[384893704,1757620277377,-819.61,0.00027944,7]
[384893705,1757620277387,-819.61,0.00027944,7]
[384893706,1757620277396,-819.61,0.00027944,7]
[384893707,1757620277406,-819.61,0.00027944,7]
[384893708,1757620277416,-819.61,0.00027944,7]
[384893709,1757620277425,-819.61,0.00027944,7]
[384893710,1757620277434,-819.81998725,0.00027944,7]
[384893711,1757620277443,-640.5,0.00027944,7]
[384893712,1757620277453,-640.5,0.00027944,7]
[384893713,1757620277463,-640.5,0.00027944,7]
[384893714,1757620277473,-640.5,0.00027944,7]
[384893715,1757620277482,-640.5,0.00027944,7]
[384893716,1757620277491,-650.72,0.00027944,7]
[384893717,1757620277500,-650.72,0.00027944,7]
[384893718,1757620277510,-650.72,0.00027944,7]
[384893719,1757620277520,-650.72,0.00027944,7]
[384893720,1757620277529,-650.72,0.00027944,7]
[384893721,1757620277538,-1348.26,0.00027944,7]
[384893722,1757620277547,-1348.26,0.00027944,7]
[384893723,1757620277557,-1348.26,0.00027944,7]
[384893724,1757620277566,-1348.26,0.00027944,7]
[384893725,1757620277575,-1348.26,0.00027944,7]
[384893726,1757620277586,-1348.26,0.00027944,7]
[384893727,1757620277596,-1348.35932365,0.00027944,7]
[384893728,1757620277606,-500.0,0.00027944,7]
[384893729,1757620277615,-500.0,0.00027944,7]
[384893730,1757620277624,-500.0,0.00027944,7]
[384893731,1757620277634,-500.0,0.00027944,7]
[384893732,1757620277643,-500.0,0.00027944,7]
[384893733,1757620277653,-170.03580793,0.00027944,7]
[384893734,1757620277662,-450.0,0.00027945,2]
[384893735,1757620277671,-500.0,0.00027945,2]
[384893736,1757620277681,-202.11035512,0.00027945,2]
[384893737,1757620277690,-150.0,0.00027945,2]
[384893738,1757620277699,-477.3079719,0.00027945,2]
[384893739,1757620277708,-150.0,0.00027945,2]
[384893740,1757620277717,-500.0,0.00027945,2]
[384893741,1757620277729,-500.0,0.00027945,2]
[384893742,1757620277739,-500.0,0.00027945,2]
[384893743,1757620277748,-500.0,0.00027945,2]
[384893744,1757620277757,-500.0,0.00027945,2]
[384893745,1757620277767,-150.0,0.00027945,2]
[384893746,1757620277777,-150.0,0.00027945,2]
[384893747,1757620277786,-500.0,0.00027945,2]
[384893748,1757620277796,-500.0,0.00027945,2]
[384893749,1757620277807,-150.0,0.00027945,2]
[384893750,1757620277817,-400.0,0.00027945,7]
[384893751,1757620277826,-400.0,0.00027945,7]
[384893752,1757620277835,-2430.85,0.00027945,7]
[384893753,1757620277844,-153.798117,0.00027945,7]
[384893754,1757620277853,-538.117843,0.00027945,7]
[384893755,1757620277863,-413.568783,0.00027945,7]
[384893756,1757620277872,-400.0,0.00027945,7]
[384893757,1757620278076,-400.0,0.00027945,7]
[384893758,1757620278093,-400.0,0.00027945,7]
[384893759,1757620278102,-1476.72,0.00027945,7]
[384893760,1757620278112,-400.0,0.00027945,7]
[384893761,1757620278121,-400.0,0.00027945,7]
[384893762,1757620278131,-400.0,0.00027945,7]
[384893763,1757620278141,-436.59,0.00027945,7]
[384893764,1757620278150,-400.0,0.00027945,7]
[384893765,1757620278159,-477.35987713,0.00027945,7]
[384893766,1757620278169,-946.77,0.00027945,7]
[384893767,1757620278178,-400.0,0.00027945,7]
[384893768,1757620278188,-409.01358984,0.00027945,7]
[384893769,1757620278198,-400.0,0.00027945,7]
[384893770,1757620278207,-400.0,0.00027945,7]
[384893771,1757620278216,-485.18,0.00027945,7]
[384893772,1757620278226,-400.0,0.00027945,7]
[384893773,1757620278235,-400.0,0.00027945,7]
[384893774,1757620278245,-500.0,0.00027945,2]
[384893775,1757620278254,-405.816002,0.00027945,7]
[384893776,1757620278264,-400.0,0.00027945,7]
[384893777,1757620278274,-535.29,0.00027945,7]
[384893778,1757620278283,-400.0,0.00027945,7]
[384893779,1757620278293,-400.0,0.00027945,7]
[384893780,1757620278302,-400.0,0.00027945,7]
[384893781,1757620278311,-400.0,0.00027945,7]
[384893782,1757620278321,-1932.18,0.00027945,7]
[384893783,1757620278330,-400.0,0.00027945,7]
[384893784,1757620278339,-400.0,0.00027945,7]
[384893785,1757620278348,-616.52,0.00027945,7]
[384893786,1757620278358,-400.0,0.00027945,7]
[384893787,1757620278367,-1891.01,0.00027945,7]
[384893788,1757620278377,-400.0,0.00027945,7]
[384893789,1757620278386,-400.0,0.00027945,7]
[384893790,1757620278396,-1000.0,0.00027945,7]
[384893791,1757620278405,-537.90243035,0.00027945,7]
[384893792,1757620278415,-300.0,0.00027945,7]
[384893793,1757620278424,-507.6,0.00027945,7]
[384893794,1757620278433,-1864.15,0.00027945,7]
[384893795,1757620278442,-614.51,0.00027945,7]
[384893796,1757620278452,-400.0,0.00027945,7]
[384893797,1757620278462,-400.0,0.00027945,7]
[384893798,1757620278471,-366.72555914,0.00027945,7]
[384893799,1757620278480,-1829.39,0.00027945,7]
[384893800,1757620278489,-425.39,0.00027945,7]
[384893801,1757620278499,-591.25,0.00027945,7]
[384893802,1757620278508,-400.0,0.00027945,7]
[384893803,1757620278518,-400.0,0.00027945,7]
[384893804,1757620278527,-400.0,0.00027945,7]
[384893805,1757620278536,-400.0,0.00027945,7]
[384893806,1757620278546,-400.0,0.00027945,7]
[384893807,1757620278556,-277.97549125,0.00027945,7]
[384893808,1757620278565,-667.39,0.00027945,7]
[384893809,1757620278575,-400.0,0.00027945,7]
[384893810,1757620278584,-512.81,0.00027945,7]
[384893811,1757620278593,-518.32781682,0.00027945,7]
[384893812,1757620278603,-411.66,0.00027945,7]
[384893813,1757620278614,-1424.15,0.00027945,7]
[384893814,1757620278623,-400.0,0.00027945,7]
[384893815,1757620278633,-400.0,0.00027945,7]
[384893816,1757620278644,-748.69,0.00027945,7]
[384893817,1757620278653,-400.0,0.00027945,7]
[384893818,1757620278663,-400.0,0.00027945,7]
[384893819,1757620278673,-400.0,0.00027945,7]
[384893820,1757620278683,-400.0,0.00027945,7]
[384893821,1757620278692,-400.0,0.00027945,7]
[384893822,1757620278702,-400.0,0.00027945,7]
[384893823,1757620278712,-400.0,0.00027945,7]
[384893824,1757620278723,-400.0,0.00027945,7]
[384893825,1757620278740,-828.56,0.00027945,7]
[384893826,1757620278749,-400.0,0.00027945,7]
[384893827,1757620278758,-524.27,0.00027945,7]
[384893828,1757620278767,-400.0,0.00027945,7]
[384893829,1757620278778,-400.0,0.00027945,7]
[384893830,1757620278788,-400.0,0.00027945,7]
[384893831,1757620278798,-407.19869536,0.00027945,7]
[384893832,1757620278808,-509.41,0.00027945,7]
[384893833,1757620278818,-400.0,0.00027945,7]
[384893834,1757620278828,-400.0,0.00027945,7]
[384893835,1757620278837,-1577.0,0.00027945,7]
[384893836,1757620278846,-400.0,0.00027945,7]
[384893837,1757620278856,-445.36,0.00027945,7]
[384893838,1757620278866,-1345.22,0.00027945,7]
[384893839,1757620278876,-448.99,0.00027945,7]
[384893840,1757620278885,-400.0,0.00027945,7]
[384893841,1757620278894,-400.0,0.00027945,7]
[384893842,1757620278904,-419.68,0.00027945,7]
[384893843,1757620278914,-431.97,0.00027945,7]
[384893844,1757620278923,-400.0,0.00027945,7]
[384893845,1757620278932,-1302.04,0.00027945,7]
[384893846,1757620278941,-408.24408307,0.00027945,7]
[384893847,1757620278950,-400.0,0.00027945,7]
[384893848,1757620278960,-400.0,0.00027945,7]
[384893849,1757620278969,-400.0,0.00027945,7]
[384893850,1757620278978,-408.27905369,0.00027945,7]
[384893851,1757620278987,-1364.69,0.00027945,7]
[384893852,1757620278997,-400.0,0.00027945,7]
[384893853,1757620279006,-966.91,0.00027945,7]
[384893854,1757620279016,-797.36,0.00027945,7]
[384893855,1757620279025,-822.06,0.00027945,7]
[384893856,1757620279035,-732.35,0.00027945,7]
[384893857,1757620279044,-654.54,0.00027945,7]
[384893858,1757620279053,-400.0,0.00027945,7]
[384893859,1757620279063,-400.0,0.00027945,7]
[384893860,1757620279073,-400.0,0.00027945,7]
[384893861,1757620279083,-625.92,0.00027945,7]
[384893862,1757620279092,-409.32820965,0.00027945,7]
[384893863,1757620279101,-914.31,0.00027945,7]
[384893864,1757620279111,-414.03440759,0.00027945,7]
[384893865,1757620279120,-429.14,0.00027945,7]
[384893866,1757620279129,-572.81,0.00027945,7]
[384893867,1757620279140,-400.0,0.00027945,7]
[384893868,1757620279149,-891.32,0.00027945,7]
[384893869,1757620279159,-669.91,0.00027945,7]
[384893870,1757620279168,-400.0,0.00027945,7]
[384893871,1757620279177,-400.0,0.00027945,7]
[384893872,1757620279187,-1472.01,0.00027945,7]
[384893873,1757620279196,-400.0,0.00027945,7]
[384893874,1757620279206,-852.32,0.00027945,7]
[384893875,1757620279215,-687.62,0.00027945,7]
[384893876,1757620279225,-400.0,0.00027945,7]
[384893877,1757620279235,-400.0,0.00027945,7]
[384893878,1757620279244,-400.0,0.00027945,7]
[384893879,1757620279253,-400.0,0.00027945,7]
[384893880,1757620279262,-400.0,0.00027945,7]
[384893881,1757620279271,-400.0,0.00027945,7]
[384893882,1757620279281,-400.0,0.00027945,7]
[384893883,1757620279290,-484.63,0.00027945,7]
[384893884,1757620279300,-400.0,0.00027945,7]
[384893885,1757620279309,-400.0,0.00027945,7]
[384893886,1757620279318,-400.0,0.00027945,7]
[384893887,1757620279328,-400.0,0.00027945,7]
[384893888,1757620279337,-400.0,0.00027945,7]
[384893889,1757620279346,-400.0,0.00027945,7]
[384893890,1757620279356,-1121.71,0.00027945,7]
[384893891,1757620279365,-400.0,0.00027945,7]
[384893892,1757620279374,-400.0,0.00027945,7]
[384893893,1757620279384,-1027.72,0.00027945,7]
[384893894,1757620279394,-400.0,0.00027945,7]
[384893895,1757620279403,-400.0,0.00027945,7]
[384893896,1757620279413,-566.73,0.00027945,7]
[384893897,1757620279423,-400.0,0.00027945,7]
[384893898,1757620279432,-400.0,0.00027945,7]
[384893899,1757620279442,-400.0,0.00027945,7]
[384893900,1757620279452,-400.0,0.00027945,7]
[384893901,1757620279461,-1338.8,0.00027945,7]
[384893902,1757620279471,-400.0,0.00027945,7]
[384893903,1757620279480,-1038.45,0.00027945,7]
[384893904,1757620279489,-400.0,0.00027945,7]
[384893905,1757620279499,-400.0,0.00027945,7]
[384893906,1757620279508,-400.0,0.00027945,7]
[384893907,1757620279518,-400.0,0.00027945,7]
[384893908,1757620279528,-400.0,0.00027945,7]
[384893909,1757620279537,-262.68172966,0.00027945,7]
[384893910,1757620279547,-400.0,0.00027945,7]
[384893911,1757620279557,-1715.83,0.00027945,7]
[384893912,1757620279567,-1183.01,0.00027945,7]
[384893914,1757620279576,-400.0,0.00027945,7]
[384893915,1757620279585,-1183.63,0.00027945,7]
[384893916,1757620279595,-400.0,0.00027945,7]
[384893917,1757620279604,-400.0,0.00027945,7]
[384893918,1757620279613,-712.44,0.00027945,7]
[384893919,1757620279623,-400.0,0.00027945,7]
[384893920,1757620279632,-400.0,0.00027945,7]
[384893921,1757620279641,-400.0,0.00027945,7]
[384893922,1757620279650,-409.73376597,0.00027945,7]
[384893923,1757620279659,-599.28,0.00027945,7]
[384893924,1757620279669,-400.0,0.00027945,7]
[384893925,1757620279678,-400.0,0.00027945,7]
[384893926,1757620279688,-1262.61,0.00027945,7]
[384893927,1757620279697,-400.0,0.00027945,7]
[384893928,1757620279706,-400.0,0.00027945,7]
[384893929,1757620279716,-400.0,0.00027945,7]
[384893930,1757620279727,-400.0,0.00027945,7]
[384893931,1757620279737,-400.0,0.00027945,7]
[384893932,1757620279746,-550.79,0.00027945,7]
[384893933,1757620279755,-400.0,0.00027945,7]
[384893934,1757620279764,-400.0,0.00027945,7]
[384893935,1757620279774,-400.0,0.00027945,7]
[384893936,1757620279783,-539.83,0.00027945,7]
[384893937,1757620279793,-400.0,0.00027945,7]
[384893938,1757620279804,-400.0,0.00027945,7]
[384893939,1757620279814,-1413.68,0.00027945,7]
[384893940,1757620279823,-423.76,0.00027945,7]
[384893941,1757620279832,-434.5,0.00027945,7]
[384893942,1757620279842,-631.57,0.00027945,7]
[384893943,1757620279851,-638.92,0.00027945,7]
[384893944,1757620279860,-400.0,0.00027945,7]
[384893945,1757620279869,-400.0,0.00027945,7]
[384893946,1757620279878,-1301.63,0.00027945,7]
[384893947,1757620279887,-461.01,0.00027945,7]
[384893948,1757620279897,-400.0,0.00027945,7]
[384893949,1757620279906,-400.0,0.00027945,7]
[384893950,1757620279915,-400.0,0.00027945,7]
[384893951,1757620279924,-400.0,0.00027945,7]
[384893952,1757620279933,-400.0,0.00027945,7]
[384893953,1757620279942,-587.83,0.00027945,7]
[384893954,1757620279952,-400.0,0.00027945,7]
[384893955,1757620279961,-400.0,0.00027945,7]
[384893956,1757620279970,-655.84,0.00027945,7]
[384893957,1757620279979,-400.0,0.00027945,7]
[384893958,1757620279988,-400.0,0.00027945,7]
[384893959,1757620279997,-400.0,0.00027945,7]
[384893960,1757620280006,-1949.65,0.00027945,7]
[384893961,1757620280015,-1569.08,0.00027945,7]
[384893962,1757620280024,-573.26,0.00027945,7]
[384893963,1757620280033,-400.0,0.00027945,7]
[384893964,1757620280042,-400.0,0.00027945,7]
[384893965,1757620280051,-400.0,0.00027945,7]
[384893966,1757620280059,-1129.89,0.00027945,7]
[384893967,1757620280069,-2078.14,0.00027945,7]
[384893968,1757620280079,-400.0,0.00027945,7]
[384893969,1757620280088,-451.51,0.00027945,7]
[384893970,1757620280098,-2296.42,0.00027945,7]
[384893971,1757620280107,-400.0,0.00027945,7]
[384893972,1757620280117,-1772.95,0.00027945,7]
[384893973,1757620280126,-472.08,0.00027945,7]
[384893974,1757620280135,-400.0,0.00027945,7]
[384893975,1757620280144,-400.0,0.00027945,7]
[384893976,1757620280153,-400.0,0.00027945,7]
[384893977,1757620280162,-447.85,0.00027945,7]
[384893978,1757620280171,-400.0,0.00027945,7]
[384893979,1757620280179,-976.57,0.00027945,7]
[384893980,1757620280189,-400.0,0.00027945,7]
[384893981,1757620280198,-1934.19,0.00027945,7]
[384893982,1757620280207,-1759.27,0.00027945,7]
[384893983,1757620280217,-400.0,0.00027945,7]
[384893984,1757620280226,-400.0,0.00027945,7]
[384893985,1757620280235,-1699.57,0.00027945,7]
[384893986,1757620280245,-400.0,0.00027945,7]
[384893987,1757620280254,-1281.61,0.00027945,7]
[384893988,1757620280263,-400.0,0.00027945,7]
[384893989,1757620280272,-400.0,0.00027945,7]
[384893990,1757620280281,-400.0,0.00027945,7]
[384893991,1757620280290,-400.0,0.00027945,7]
[384893992,1757620280300,-280.34944582,0.00027945,7]
[384893993,1757620280309,-3618.27,0.00027945,7]
[384893994,1757620280318,-548.49,0.00027945,7]
[384893995,1757620280327,-400.0,0.00027945,7]
[384893996,1757620280336,-400.0,0.00027945,7]
[384893997,1757620280345,-400.0,0.00027945,7]
[384893998,1757620280354,-2023.83,0.00027945,7]
[384893999,1757620280363,-1442.9,0.00027945,7]
[384894000,1757620280372,-874.32,0.00027945,7]
[384894001,1757620280381,-559.89,0.00027945,7]
[384894002,1757620280391,-400.0,0.00027945,7]
[384894003,1757620280400,-400.0,0.00027945,7]
[384894004,1757620280409,-1870.52,0.00027945,7]
[384894005,1757620280418,-400.0,0.00027945,7]
[384894006,1757620280427,-1038.88,0.00027945,7]
[384894007,1757620280512,-421.05,0.00027945,7]
[384894008,1757620280521,-3245.04,0.00027945,7]
[384894009,1757620280530,-2849.39,0.00027945,7]
[384894010,1757620280539,-400.0,0.00027945,7]
[384894011,1757620280548,-900.64,0.00027945,7]
[384894012,1757620280557,-1015.4,0.00027945,7]
[384894013,1757620280566,-2061.18,0.00027945,7]
[384894014,1757620280575,-634.56,0.00027945,7]
[384894015,1757620280584,-519.23,0.00027945,7]
[384894016,1757620280594,-400.0,0.00027945,7]
[384894017,1757620280603,-1273.03,0.00027945,7]
[384894018,1757620280612,-782.32,0.00027945,7]
[384894019,1757620280621,-843.9,0.00027945,7]
[384894020,1757620280630,-1222.09,0.00027945,7]
[384894021,1757620280639,-400.0,0.00027945,7]
[384894022,1757620280648,-400.0,0.00027945,7]
[384894023,1757620280658,-373.12540971,0.00027945,7]
[384894024,1757620280667,-2214.49,0.00027945,7]
[384894025,1757620280677,-1023.46,0.00027945,7]
[384894026,1757620280686,-935.93,0.00027945,7]
[384894027,1757620280695,-400.0,0.00027945,7]
[384894028,1757620280703,-400.0,0.00027945,7]
[384894029,1757620280713,-1772.64,0.00027945,7]
[384894030,1757620280721,-1217.98,0.00027945,7]
[384894031,1757620280734,-400.0,0.00027945,7]
[384894032,1757620280743,-400.0,0.00027945,7]
[384894033,1757620280752,-400.0,0.00027945,7]
[384894034,1757620280761,-2675.98,0.00027945,7]
[384894035,1757620280771,-400.0,0.00027945,7]
[384894036,1757620280781,-989.51,0.00027945,7]
[384894037,1757620280789,-2500.28,0.00027945,7]
[384894038,1757620280800,-400.0,0.00027945,7]
[384894039,1757620280810,-1883.38,0.00027945,7]
[384894040,1757620280819,-1326.72,0.00027945,7]
[384894041,1757620280828,-1539.36,0.00027945,7]
[384894042,1757620280837,-430.57819829,0.00027945,7]
[384894043,1757620280846,-571.87,0.00027945,7]
[384894044,1757620280855,-618.03,0.00027945,7]
[384894045,1757620280865,-409.4738928,0.00027945,7]
[384894046,1757620280875,-538.51359724,0.00027945,7]
[384894047,1757620280884,-656.28,0.00027945,7]
[384894048,1757620280893,-400.0,0.00027945,7]
[384894049,1757620280903,-400.0,0.00027945,7]
[384894050,1757620280912,-2951.51,0.00027945,7]
[384894051,1757620280921,-2570.45,0.00027945,7]
[384894052,1757620280930,-400.0,0.00027945,7]
[384894053,1757620280939,-450.92687671,0.00027945,7]
[384894054,1757620280948,-400.0,0.00027945,7]
[384894055,1757620280957,-1100.31,0.00027945,7]
[384894056,1757620280966,-1141.14,0.00027945,7]
[384894057,1757620280975,-557.19,0.00027945,7]
[384894058,1757620280984,-247.68286123,0.00027945,7]
[384894059,1757620280993,-2877.82,0.00027945,7]
[384894060,1757620281002,-687.63,0.00027945,7]
[384894061,1757620281011,-400.0,0.00027945,7]
[384894062,1757620281020,-1184.56,0.00027945,7]
[384894063,1757620281029,-2188.44,0.00027945,7]
[384894064,1757620281039,-2081.41,0.00027945,7]
[384894065,1757620281048,-400.0,0.00027945,7]
[384894066,1757620281058,-426.61258807,0.00027945,7]
[384894067,1757620281068,-2396.81,0.00027945,7]
[384894068,1757620281077,-400.0,0.00027945,7]
[384894069,1757620281087,-400.0,0.00027945,7]
[384894070,1757620281099,-407.70539112,0.00027945,7]
[384894071,1757620281108,-400.0,0.00027945,7]
[384894072,1757620281117,-401.77,0.00027945,7]
[384894073,1757620281126,-1537.93,0.00027945,7]
[384894074,1757620281135,-400.0,0.00027945,7]
[384894075,1757620281144,-820.95,0.00027945,7]
[384894076,1757620281153,-850.53,0.00027945,7]
[384894077,1757620281163,-400.0,0.00027945,7]
[384894078,1757620281172,-400.0,0.00027945,7]
[384894079,1757620281181,-400.0,0.00027945,7]
[384894080,1757620281190,-2492.22,0.00027945,7]
[384894081,1757620281199,-605.15,0.00027945,7]
[384894082,1757620281208,-377.54797394,0.00027945,7]
[384894083,1757620281218,-2051.8,0.00027945,7]
[384894084,1757620281227,-400.0,0.00027945,7]
[384894085,1757620281235,-400.0,0.00027945,7]
[384894086,1757620281245,-1662.8,0.00027945,7]
[384894087,1757620281254,-1492.71,0.00027945,7]
[384894088,1757620281263,-400.0,0.00027945,7]
[384894089,1757620281272,-1637.3,0.00027945,7]
[384894090,1757620281281,-2072.33,0.00027945,7]
[384894091,1757620281290,-2943.27,0.00027945,7]